bitfinex/quotes_BTCUSD_20251217
["timestamp","ask_amount","ask_price","bid_price","bid_amount"]
[1765987559777,0.69173,87473.0,87440.0,0.01143641]
[1765987559991,0.48192,87469.0,87439.0,0.01143654]
[1765987560205,0.48192,87469.0,87424.0,0.22876983]
[1765987560206,0.69173,87487.0,87459.0,0.01143392]
[1765987560418,0.02895932,87603.0,87425.0,0.33296189]
[1765987560419,0.001,87489.0,87469.0,0.49155]
[1765987560631,0.01888,87499.0,87486.0,0.00222067]
[1765987560843,0.01888,87499.0,87472.0,0.49155]
[1765987561052,0.01888,87498.0,87472.0,0.49155]
[1765987561260,0.69173,87505.0,87464.0,0.01143327]
[1765987561464,1.01558375,87500.0,87478.0,0.01351176]
[1765987561689,1.01558375,87500.0,87456.0,0.01888]
[1765987561690,0.48192,87488.0,87456.0,0.01888]
[1765987561890,0.69173,87503.0,87462.0,0.49155]
[1765987562111,0.02049,87503.0,87475.0,0.01143183]
[1765987562316,0.69173,87498.0,87465.0,0.22866175]
[1765987562550,0.69173,87498.0,87463.0,0.3885534]
[1765987562551,0.69173,87496.0,87475.0,0.01351176]
[1765987562769,0.00161,87496.0,87475.0,0.01351176]
[1765987563210,0.69173,87508.0,87489.0,0.01351176]
[1765987563339,0.00161,87507.0,87480.0,0.49155]
[1765987563542,0.00161,87507.0,87481.0,0.01371726]
[1765987563766,0.00161,87507.0,87475.0,0.01351176]
[1765987563767,0.00161,87507.0,87489.0,0.01351176]
[1765987563977,0.01888,87512.0,87490.0,0.49155]
[1765987564189,0.77822858,87531.0,87503.0,0.01351176]
[1765987564353,0.08810858,87531.0,87503.0,0.01351176]
[1765987564548,0.08810858,87531.0,87507.0,0.49155]
[1765987564756,0.00161,87531.0,87504.0,0.01888]
[1765987564973,0.00161,87531.0,87505.0,0.49155]
[1765987565515,0.00161,87531.0,87481.0,0.38855105]
[1765987565651,0.00161,87531.0,87490.0,0.49155]
[1765987565856,0.2907,87527.0,87492.0,0.49155]
[1765987566065,0.48192,87519.0,87498.0,0.00184509]
[1765987566318,0.2907,87518.0,87470.0,0.49155]
[1765987566517,0.01888,87526.0,87470.0,0.49155]
[1765987566518,0.69173,87519.0,87482.0,0.01351176]
[1765987566665,0.2907,87515.0,87484.0,0.49155]
[1765987566861,0.2907,87515.0,87496.0,0.01351176]
[1765987567432,0.69173,87517.0,87483.0,0.01888]
[1765987567630,0.69173,87517.0,87482.0,0.01351176]
[1765987567631,0.09609088,87514.0,87482.0,0.01351176]
[1765987567780,0.2907,87517.0,87482.0,0.01351176]
[1765987567999,0.04767425,87518.0,87469.0,0.49155]
[1765987568220,0.2907,87513.0,87478.0,0.01351176]
[1765987568419,0.2907,87511.0,87479.0,0.49155]
[1765987568621,0.001,87515.0,87492.0,0.01351176]
[1765987569424,0.01888,87518.0,87492.0,0.01351176]
[1765987569607,0.01888,87518.0,87493.0,0.22858971]
[1765987569817,0.004,87517.0,87500.0,0.48203]
[1765987570051,0.004,87517.0,87502.0,0.48203]
[1765987570253,0.01888,87538.0,87501.0,0.01888]
[1765987570254,1.00715,87527.0,87501.0,0.01888]
[1765987570609,0.2907,87527.0,87501.0,0.01888]
[1765987570815,0.2907,87527.0,87492.0,0.49554176]
[1765987570816,0.2907,87520.0,87449.0,0.22870465]
[1765987571072,0.2907,87517.0,87463.0,0.24009976]
[1765987571277,0.2907,87517.0,87469.0,0.01143262]
[1765987571479,0.2907,87510.0,87470.0,0.01888]
[1765987571680,0.2907,87510.0,87475.0,0.01143183]
[1765987571882,0.2907,87510.0,87509.0,0.0015009]
[1765987572081,0.2907,87515.0,87509.0,0.0015009]
[1765987572286,0.2907,87515.0,87477.0,0.01371789]
[1765987572489,0.2907,87515.0,87477.0,0.01143157]
[1765987572701,1.17982,87513.0,87476.0,0.01351176]
[1765987572894,0.2907,87517.0,87476.0,0.01351176]
[1765987572895,1.0,87515.0,87476.0,0.01351176]
[1765987573100,0.2907,87506.0,87476.0,0.01351176]
[1765987573401,0.48653,87502.0,87476.0,0.01351176]
[1765987573545,0.69329,87500.0,87476.0,0.01351176]
[1765987574500,0.69329,87504.0,87476.0,0.49386176]
[1765987574711,0.69329,87502.0,87476.0,0.49386176]
[1765987574868,0.48653,87500.0,87476.0,0.01351176]
[1765987575068,0.69329,87499.0,87476.0,0.01351176]
[1765987575277,0.69329,87498.0,87476.0,0.01351176]
[1765987575495,0.69329,87498.0,87466.0,0.37612]
[1765987575670,0.69329,87498.0,87428.0,0.05771321]
[1765987575671,0.48653,87479.0,87420.0,0.00099999]
[1765987575875,0.01888,87478.0,87440.0,0.01351176]
[1765987576095,0.30958,87478.0,87440.0,0.01351176]
[1765987576293,0.08468884,87479.0,87441.0,0.48035]
[1765987576633,0.2907,87476.0,87444.0,0.01143589]
[1765987576787,0.48653,87492.0,87455.0,0.48035]
[1765987576989,0.01142622,87518.0,87440.0,0.01351176]
[1765987576990,0.48653,87503.0,87468.0,0.48035]
[1765987577190,0.69329,87502.0,87468.0,0.48035]
[1765987577573,0.48653,87497.0,87469.0,0.01351176]
[1765987577904,0.48653,87497.0,87459.0,0.48035]
[1765987577905,0.002,87492.0,87459.0,0.48035]
[1765987578107,0.2907,87488.0,87436.0,0.48035]
[1765987578237,0.48653,87477.0,87422.0,0.0002]
[1765987578440,0.70675239,87460.0,87422.0,0.0002]
[1765987578641,0.2907,87457.0,87419.0,0.0002]
[1765987578855,0.48653,87455.0,87419.0,0.0002]
[1765987579054,0.2907,87448.0,87419.0,0.0002]
[1765987579254,0.2907,87445.0,87421.0,0.01351176]
[1765987579527,0.2907,87445.0,87419.0,0.0002]
[1765987579528,0.29231,87445.0,87419.0,0.0002]
[1765987579903,0.05772278,87505.0,87435.0,0.01143706]
[1765987580074,0.00161,87476.0,87446.0,0.01143562]
[1765987580414,0.00161,87476.0,87450.0,0.3875651]
[1765987580741,0.69329,87487.0,87450.0,0.3875651]
[1765987580742,0.69329,87487.0,87454.0,0.01143458]
[1765987580943,0.6949,87487.0,87453.0,0.37613]
[1765987581071,0.6949,87487.0,87462.0,0.01143353]
[1765987581289,0.69329,87503.0,87464.0,0.37613]
[1765987581525,0.69329,87492.0,87459.0,0.01143392]
[1765987581762,0.01888,87491.0,87466.0,0.01143301]
[1765987581930,0.01888,87491.0,87467.0,0.01143288]
[1765987582289,0.01888,87491.0,87464.0,0.37613]
[1765987582643,0.02049,87491.0,87477.0,0.01351176]
[1765987583154,0.003,87487.0,87477.0,0.01351176]
[1765987583520,0.02049,87491.0,87477.0,0.01351176]
[1765987583754,0.02049,87491.0,87490.0,0.0005944]
[1765987583923,0.00161,87491.0,87490.0,0.0005944]
[1765987585578,0.69329,87518.0,87490.0,0.0005944]
[1765987585775,0.01888,87513.0,87481.0,0.22861903]
[1765987585998,0.01888,87513.0,87483.0,0.48035]
[1765987586200,0.01888,87513.0,87490.0,0.002]
[1765987586400,0.01888,87513.0,87490.0,0.48035]
[1765987586778,0.01888,87513.0,87491.0,0.01351176]
[1765987587123,0.01000575,87512.0,87491.0,0.01351176]
[1765987587619,0.01000575,87512.0,87492.0,0.01351176]
[1765987588120,0.01000575,87512.0,87493.0,0.01351176]
[1765987588633,0.01000575,87512.0,87495.0,0.48035]
[1765987588860,0.01000575,87512.0,87493.0,0.01351176]
[1765987588861,0.72178543,87546.0,87509.0,0.37813]
[1765987589062,0.02310922,87545.0,87512.0,0.48035]
[1765987589261,0.02471922,87545.0,87512.0,0.48035]
[1765987589803,0.02471922,87545.0,87513.0,0.48035]
[1765987590115,0.69329,87544.0,87513.0,0.48035]
[1765987590313,0.6949,87544.0,87513.0,0.48035]
[1765987590514,0.03053864,87559.0,87530.0,0.48035]
[1765987590837,0.00161,87550.0,87530.0,0.48035]
[1765987591032,0.00161,87550.0,87512.0,0.001]
[1765987591033,0.48653,87539.0,87512.0,0.001]
[1765987591333,0.2907,87538.0,87503.0,0.48035]
[1765987591531,0.2907,87538.0,87507.0,0.48035]
[1765987591532,0.29231,87538.0,87507.0,0.48035]
[1765987591731,0.29231,87538.0,87508.0,0.48035]
[1765987592117,0.69329,87529.0,87501.0,0.00025024]
[1765987592339,0.69329,87527.0,87501.0,0.00025024]
[1765987592575,0.98399,87524.0,87513.0,0.001]
[1765987592763,0.2907,87524.0,87513.0,0.001]
[1765987592931,0.2907,87524.0,87503.0,0.48035]
[1765987593130,0.2907,87524.0,87504.0,0.37813]
[1765987593320,0.2907,87524.0,87505.0,0.48035]
[1765987593515,0.00161,87527.0,87505.0,0.48035]
[1765987593742,0.00161,87527.0,87513.0,0.001]
[1765987594145,0.00161,87527.0,87506.0,0.01884]
[1765987594548,0.00161,87527.0,87514.0,0.01351176]
[1765987594946,0.00161,87527.0,87506.0,0.01884]
[1765987595225,0.2907,87525.0,87501.0,0.00025024]
[1765987595540,0.69329,87519.0,87501.0,2.4e-07]
[1765987595765,0.48653,87509.0,87501.0,2.4e-07]
[1765987596081,0.69329,87508.0,87501.0,2.4e-07]
[1765987596295,0.69329,87505.0,87478.0,0.48035]
[1765987596499,0.78480096,87511.0,87464.0,0.01143327]
[1765987596500,0.30954,87504.0,87464.0,0.01143327]
[1765987596694,0.30954,87504.0,87459.0,0.02494568]
[1765987596695,0.01884,87504.0,87479.0,0.01351176]
[1765987597084,0.69329,87510.0,87479.0,0.01351176]
[1765987597085,0.01884,87507.0,87480.0,0.01143118]
[1765987597284,0.01884,87507.0,87479.0,0.01351176]
[1765987598110,0.01884,87507.0,87481.0,0.01143105]
[1765987598441,0.01884,87507.0,87485.0,0.01143053]
[1765987598646,0.02849543,87536.0,87499.0,0.0114287]
[1765987598900,0.02849543,87536.0,87502.0,0.01142831]
[1765987598901,0.01884,87530.0,87502.0,0.01142831]
[1765987599103,0.02314437,87536.0,87519.0,0.01351176]
[1765987599287,0.02315454,87548.0,87523.0,0.48035]
[1765987599507,0.01884,87553.0,87524.0,0.01142543]
[1765987599692,0.01884,87553.0,87523.0,0.01142556]
[1765987599693,0.01884,87553.0,87526.0,0.48035]
[1765987600276,0.01884,87553.0,87534.0,0.01351176]
[1765987600482,0.47582,87551.0,87519.0,0.01351176]
[1765987600698,0.47582,87549.0,87505.0,0.51847]
[1765987600907,0.47582,87549.0,87504.0,0.01884]
[1765987600908,0.2907,87546.0,87504.0,0.01884]
[1765987601119,0.01004619,87545.0,87504.0,0.01884]
[1765987601322,0.2907,87541.0,87518.0,0.01351176]
[1765987601574,0.01004619,87540.0,87522.0,0.51847]
[1765987601777,0.7476,87558.0,87532.0,0.01351176]
[1765987601778,0.01004619,87539.0,87532.0,0.01351176]
[1765987601956,0.01884,87556.0,87526.0,0.74697242]
[1765987602152,0.01884,87556.0,87528.0,0.51847]
[1765987602378,0.2907,87553.0,87525.0,0.01884]
[1765987602596,0.7476,87552.0,87525.0,0.01884]
[1765987602805,0.7476,87551.0,87525.0,0.01884]
[1765987602982,0.003,87546.0,87525.0,0.01884]
[1765987603186,0.74921,87551.0,87522.0,0.01142569]
[1765987603393,0.74921,87551.0,87523.0,0.01884]
[1765987603691,0.00161,87551.0,87534.0,0.01351176]
[1765987603890,0.00161,87551.0,87535.0,0.51847]
[1765987604429,0.00161,87551.0,87515.0,0.53198176]
[1765987604624,0.00161,87551.0,87515.0,0.01351176]
[1765987604625,0.2907,87549.0,87515.0,0.01351176]
[1765987604856,0.29231,87549.0,87529.0,0.01351176]
[1765987605000,0.29231,87549.0,87529.0,0.53198176]
[1765987605410,0.00161,87549.0,87529.0,0.53198176]
[1765987606106,0.00161,87549.0,87529.0,0.54340654]
[1765987606319,0.00204321,87559.0,87529.0,0.54340654]
[1765987606320,0.00204321,87559.0,87544.0,0.01351176]
[1765987606510,3.21e-06,87559.0,87544.0,0.53198176]
[1765987607130,3.21e-06,87559.0,87544.0,0.01351176]
[1765987607630,3.21e-06,87559.0,87544.0,0.02493458]
[1765987607863,3.21e-06,87559.0,87556.0,0.51847]
[1765987608074,3.21e-06,87559.0,87558.0,0.51847]
[1765987608305,3.21e-06,87559.0,87558.0,0.89456]
[1765987608468,0.7476,87593.0,87558.0,0.89456]
[1765987608469,0.02313094,87592.0,87563.0,0.22840676]
[1765987608675,0.01884,87593.0,87579.0,0.01351176]
[1765987609150,0.7476,87601.0,87579.0,0.01351176]
[1765987609419,0.47582,87600.0,87565.0,0.01351176]
[1765987609586,0.7476,87595.0,87566.0,0.01884]
[1765987609790,0.7476,87591.0,87565.0,0.01351176]
[1765987610117,0.74921,87591.0,87566.0,0.01884]
[1765987610318,0.00161,87591.0,87572.0,0.51847]
[1765987610521,0.2907,87596.0,87574.0,0.52988891]
[1765987610689,0.001,87600.0,87575.0,0.51847]
[1765987610891,0.01884,87602.0,87575.0,0.51847]
[1765987611113,0.00161,87602.0,87578.0,0.22836785]
[1765987611377,0.7476,87638.0,87607.0,0.51847]
[1765987611576,0.01351176,87640.0,87614.0,0.22827191]
[1765987611701,0.01351176,87640.0,87615.0,0.51847]
[1765987611892,0.01351176,87640.0,87616.0,0.01141344]
[1765987612091,0.47582,87647.0,87631.0,0.01351176]
[1765987612296,0.7476,87661.0,87635.0,0.29231287]
[1765987612522,0.47582,87671.0,87636.0,0.01141083]
[1765987612744,0.47582,87671.0,87639.0,0.2907]
[1765987612889,0.7476,87669.0,87640.0,0.0188]
[1765987613095,0.0188,87680.0,87640.0,0.00161287]
[1765987613313,0.0188,87680.0,87641.0,0.0188]
[1765987613517,0.0188,87680.0,87641.0,0.02041287]
[1765987613717,0.0188,87680.0,87652.0,0.01351176]
[1765987613718,0.7476,87670.0,87652.0,0.01351176]
[1765987613944,0.47582,87678.0,87652.0,0.01512463]
[1765987614155,0.7476,87675.0,87652.0,0.01512463]
[1765987614327,0.7476,87674.0,87653.0,0.0188]
[1765987614688,0.7476,87674.0,87653.0,0.02041287]
[1765987614839,0.0208,87680.0,87653.0,0.02041287]
[1765987614840,0.002,87680.0,87653.0,0.02041287]
[1765987615007,0.002,87680.0,87669.0,0.01351176]
[1765987615210,0.002,87680.0,87669.0,0.00161287]
[1765987615680,0.7476,87697.0,87669.0,0.00161287]
[1765987615883,0.7476,87697.0,87669.0,0.52008287]
[1765987616654,0.7476,87693.0,87670.0,0.0188]
[1765987616852,0.0188,87703.0,87673.0,0.51847]
[1765987617051,0.0188,87703.0,87678.0,0.51847]
[1765987617277,0.7476,87708.0,87678.0,0.52008287]
[1765987617486,0.7476,87708.0,87678.0,0.53148823]
[1765987617639,0.7476,87708.0,87680.0,0.2907]
[1765987617840,0.7476,87708.0,87680.0,0.29231287]
[1765987618284,0.7476,87705.0,87687.0,0.01351176]
[1765987618482,0.7476,87700.0,87683.0,0.0188]
[1765987618689,0.7476,87698.0,87674.0,0.0188]
[1765987618894,0.84195806,87720.0,87664.0,0.2907]
[1765987618895,0.47582,87690.0,87664.0,0.2907]
[1765987619137,0.00106052,87675.0,87665.0,0.0188]
[1765987619330,0.47582,87686.0,87664.0,0.2907]
[1765987619473,0.47582,87676.0,87650.0,0.01351176]
[1765987619675,0.7476,87672.0,87651.0,0.01351176]
[1765987619912,0.01140302,87696.0,87638.0,0.44198176]
[1765987619913,0.7476,87666.0,87641.0,0.0188]
[1765987620231,0.7476,87666.0,87626.0,0.01141213]
[1765987620232,0.47582,87654.0,87614.0,0.08297]
[1765987620444,0.7476,87639.0,87611.0,0.0188]
[1765987620592,0.47582,87642.0,87611.0,0.0188]
[1765987620593,0.0188,87653.0,87618.0,0.01369581]
[1765987620773,0.0188,87653.0,87621.0,0.2907]
[1765987621292,0.7476,87649.0,87631.0,0.01351176]
[1765987621491,0.7476,87648.0,87633.0,0.01351176]
[1765987621731,0.0188,87653.0,87633.0,0.01351176]
[1765987622041,0.7476,87648.0,87607.0,0.51847]
[1765987622193,0.69326889,87643.0,87610.0,0.0188]
[1765987622530,0.69487889,87643.0,87599.0,0.01141565]
[1765987622767,0.69487889,87643.0,87598.0,0.51847]
[1765987622971,0.69326889,87620.0,87590.0,0.00207239]
[1765987623183,1.22342,87619.0,87590.0,0.00207239]
[1765987623386,0.00161,87619.0,87590.0,0.00207239]
[1765987623591,0.00161,87619.0,87594.0,0.0114163]
[1765987623722,0.00161,87619.0,87605.0,0.01351176]
[1765987623927,0.00161,87619.0,87595.0,0.51847]
[1765987624353,0.00261,87619.0,87598.0,0.01141578]
[1765987624560,0.0188,87632.0,87613.0,0.01141383]
[1765987624919,0.0188,87641.0,87610.0,0.80917]
[1765987625075,0.74921,87632.0,87615.0,0.01351176]
[1765987625254,0.47582,87627.0,87601.0,0.01351176]
[1765987625454,0.7476,87624.0,87601.0,0.01351176]
[1765987625913,0.001,87619.0,87601.0,0.01351176]
[1765987626059,0.7486,87619.0,87601.0,0.01351176]
[1765987626261,0.7476,87619.0,87601.0,0.01351176]
[1765987626787,0.47582,87626.0,87601.0,0.01351176]
[1765987626955,0.00161,87632.0,87615.0,0.01351176]
[1765987627162,0.47582,87639.0,87615.0,0.01351176]
[1765987627369,0.47582,87653.0,87622.0,0.51847]
[1765987627593,0.47582,87653.0,87618.0,0.22826256]
[1765987627594,0.47582,87653.0,87624.0,0.2907]
[1765987627791,0.7476,87648.0,87629.0,0.01351176]
[1765987628212,0.0188,87655.0,87630.0,0.51847]
[1765987628730,0.0188,87655.0,87643.0,0.01351176]
[1765987628907,0.74246,87670.0,87643.0,0.52515176]
[1765987629089,0.0188,87678.0,87649.0,0.51164]
[1765987629295,0.0188,87678.0,87646.0,0.08173]
[1765987629296,0.0188,87687.0,87655.0,0.2907]
[1765987629660,0.74246,87700.0,87662.0,0.51164]
[1765987629835,0.0188,87701.0,87662.0,0.51164]
[1765987629836,0.51519,87698.0,87663.0,0.2907]
[1765987630041,0.74246,87697.0,87665.0,0.2907]
[1765987630194,0.74246,87697.0,87667.0,0.51164]
[1765987630603,0.74407,87697.0,87667.0,0.51164]
[1765987631685,0.50099,87724.0,87687.0,0.80357]
[1765987631884,0.70956,87723.0,87689.0,0.01140393]
[1765987632099,0.72832,87734.0,87700.0,0.51287]
[1765987632310,0.72832,87734.0,87701.0,0.01876]
[1765987632515,0.72832,87734.0,87701.0,0.53324287]
[1765987632715,0.70956,87732.0,87701.0,0.53324287]
[1765987632918,0.01876,87734.0,87701.0,0.00161287]
[1765987632919,0.70956,87730.0,87701.0,0.00161287]
[1765987633129,0.70956,87726.0,87701.0,0.00161287]
[1765987633326,0.70956,87733.0,87703.0,0.51287]
[1765987633527,0.70956,87733.0,87703.0,0.52588498]
[1765987633905,0.70956,87733.0,87704.0,0.01140198]
[1765987634106,0.70956,87733.0,87704.0,0.00161287]
[1765987634408,0.70956,87729.0,87704.0,0.00161287]
[1765987634813,0.70956,87729.0,87696.0,0.01140302]
[1765987634814,0.50099,87724.0,87688.0,0.01876]
[1765987635011,0.50099,87718.0,87678.0,0.2907]
[1765987635192,0.70956,87704.0,87671.0,0.01140628]
[1765987635393,0.70956,87704.0,87676.0,0.01876]
[1765987635696,1.21055,87681.0,87630.0,0.51287]
[1765987635893,1.0,87691.0,87619.0,0.51287]
[1765987635894,0.70956,87667.0,87619.0,0.51287]
[1765987636096,0.70956,87667.0,87634.0,0.01141109]
[1765987636300,0.70956,87665.0,87627.0,0.2907]
[1765987636495,0.70956,87662.0,87642.0,0.01351176]
[1765987636759,0.82366,87662.0,87632.0,0.01351176]
[1765987637035,0.01876,87661.0,87633.0,0.2907]
[1765987637195,0.01876,87661.0,87632.0,0.01351176]
[1765987638120,0.001,87662.0,87648.0,0.01351176]
[1765987638527,0.00261287,87662.0,87636.0,0.2907]
[1765987638860,0.00161287,87662.0,87636.0,0.80357]
[1765987639511,0.00161287,87662.0,87646.0,0.01351176]
[1765987639717,0.1141,87657.0,87636.0,0.001]
[1765987639925,0.11571287,87657.0,87632.0,0.01351176]
[1765987640289,0.82527287,87657.0,87632.0,0.01351176]
[1765987641207,0.00093567,87679.0,87656.0,0.00161287]
[1765987641407,0.70956,87680.0,87656.0,0.00161287]
[1765987642291,0.70956,87674.0,87656.0,0.00161287]
[1765987642494,0.50099,87675.0,87656.0,0.00161287]
[1765987642495,0.72832,87673.0,87656.0,0.00161287]
[1765987643301,0.70956,87673.0,87656.0,0.00161287]
[1765987643445,0.001,87680.0,87656.0,0.00161287]
[1765987643446,0.01876,87676.0,87660.0,0.01351176]
[1765987643630,0.01876,87676.0,87660.0,0.00161287]
[1765987643826,0.01876,87676.0,87661.0,0.01351176]
[1765987644074,0.01876,87676.0,87661.0,0.01512463]
[1765987644666,0.05796882,87714.0,87662.0,0.01368894]
[1765987644866,0.00099999,87730.0,87675.0,0.52638176]
[1765987644867,0.01876,87713.0,87675.0,0.52638176]
[1765987645202,0.70956,87710.0,87677.0,0.51287]
[1765987645419,0.01876,87709.0,87679.0,0.0229]
[1765987645569,0.70956,87708.0,87679.0,0.00161287]
[1765987645776,0.50099,87707.0,87679.0,0.00161287]
[1765987646004,0.70956,87702.0,87679.0,0.00161287]
[1765987646145,0.70956,87702.0,87680.0,0.01351176]
[1765987646354,0.70956,87702.0,87680.0,0.01512463]
[1765987646554,0.50099,87701.0,87680.0,0.01512463]
[1765987646751,0.70956,87707.0,87661.0,0.01351176]
[1765987646973,0.01876,87706.0,87661.0,0.01351176]
[1765987647220,0.2907,87704.0,87661.0,0.01351176]
[1765987647394,0.2907,87697.0,87661.0,0.01351176]
[1765987647995,0.70956,87696.0,87661.0,0.01351176]
[1765987648196,0.79169,87690.0,87661.0,0.01351176]
[1765987648394,0.70956,87692.0,87661.0,0.01351176]
[1765987648620,0.70956,87692.0,87675.0,0.01351176]
[1765987648781,0.2907,87693.0,87675.0,0.01351176]
[1765987648984,0.01876,87697.0,87675.0,0.01351176]
[1765987649407,0.01876,87697.0,87628.0,0.0575679]
[1765987649408,0.50099,87695.0,87650.0,0.51287]
[1765987649608,0.2907,87689.0,87646.0,0.52638176]
[1765987649885,1.21055,87689.0,87661.0,0.01351176]
[1765987650024,0.2907,87689.0,87646.0,0.01351176]
[1765987650368,0.2907,87679.0,87646.0,0.01351176]
[1765987650602,0.70956,87668.0,87646.0,0.01351176]
[1765987650748,0.70956,87665.0,87646.0,0.01351176]
[1765987650947,0.2907,87662.0,87633.0,0.01351176]
[1765987651153,0.70956,87659.0,87641.0,0.01351176]
[1765987651500,0.00161,87659.0,87641.0,0.01351176]
[1765987651700,0.70956,87657.0,87620.0,0.52428291]
[1765987651971,0.70956,87655.0,87620.0,0.2907]
[1765987652130,0.02037,87657.0,87630.0,0.51287]
[1765987652533,0.00161,87657.0,87649.0,0.01351176]
[1765987652736,0.01876,87666.0,87649.0,0.01351176]
[1765987653089,0.2907,87664.0,87635.0,0.01351176]
[1765987653289,0.00161,87664.0,87635.0,0.01351176]
[1765987653482,0.70956,87657.0,87635.0,0.01351176]
[1765987653694,0.71117,87657.0,87635.0,0.01351176]
[1765987654877,1.21055,87654.0,87621.0,0.01351176]
[1765987655214,0.2907,87651.0,87635.0,0.01351176]
[1765987655337,0.2907,87651.0,87649.0,0.001]
[1765987655548,0.2907,87651.0,87622.0,0.51287]
[1765987655549,0.70956,87650.0,87622.0,0.51177]
[1765987655938,0.01876,87649.0,87622.0,0.51177]
[1765987656139,0.72832,87649.0,87622.0,0.51177]
[1765987656745,0.70956,87649.0,87635.0,0.01351176]
[1765987657095,0.01876,87648.0,87635.0,0.01351176]
[1765987657397,0.01876,87648.0,87622.0,0.51177]
[1765987657598,0.01876,87648.0,87622.0,0.51287]
[1765987657944,0.01876,87648.0,87635.0,0.01351176]
[1765987658170,0.2907,87655.0,87635.0,0.01351176]
[1765987658171,0.01876,87654.0,87635.0,0.01351176]
[1765987658838,0.2907,87650.0,87621.0,0.01351176]
[1765987659057,0.52313,87649.0,87621.0,0.01351176]
[1765987659289,0.30080977,87650.0,87621.0,0.01351176]
[1765987659290,0.2907,87648.0,87621.0,0.01351176]
[1765987659546,0.67654,87640.0,87613.0,0.01876]
[1765987659766,0.67654,87638.0,87619.0,0.01351176]
[1765987659977,1.19967,87638.0,87619.0,0.01351176]
[1765987660622,0.2907,87637.0,87620.0,0.01351176]
[1765987660859,0.01876,87636.0,87620.0,0.01351176]
[1765987661068,0.9939,87635.0,87605.0,0.49555]
[1765987661268,0.01876,87636.0,87610.0,0.01141422]
[1765987661491,0.01876,87638.0,87614.0,0.49816]
[1765987661720,0.001,87640.0,87614.0,0.49555]
[1765987661938,0.2907,87638.0,87603.0,0.00261]
[1765987662139,0.7032,87633.0,87617.0,0.01351176]
[1765987662348,0.01876,87632.0,87617.0,0.01351176]
[1765987662558,0.2907,87634.0,87617.0,0.01351176]
[1765987662772,0.01876,87647.0,87619.0,0.49555]
[1765987662996,0.2907,87641.0,87631.0,0.01351176]
[1765987663201,0.2907,87641.0,87617.0,0.01351176]
[1765987663411,0.2907,87641.0,87618.0,0.49555]
[1765987663636,0.05763746,87671.0,87618.0,0.49555]
[1765987663637,0.49578,87679.0,87638.0,0.2907]
[1765987663850,0.7032,87676.0,87636.0,0.01876]
[1765987664059,0.7032,87676.0,87652.0,0.2907]
[1765987664281,0.7032,87685.0,87658.0,0.01140797]
[1765987664569,0.49578,87694.0,87660.0,0.01140771]
[1765987664760,0.7032,87693.0,87669.0,0.01351176]
[1765987665600,0.70481,87693.0,87669.0,0.01351176]
[1765987666604,0.00161,87693.0,87669.0,0.01351176]
[1765987667019,0.7032,87691.0,87669.0,0.01351176]
[1765987667450,0.7032,87691.0,87668.0,0.01876]
[1765987667659,0.7032,87687.0,87670.0,0.01351176]
[1765987667834,0.7032,87685.0,87669.0,0.01351176]
[1765987668529,0.49578,87691.0,87669.0,0.01451176]
[1765987668758,0.49578,87687.0,87669.0,0.01351176]
[1765987668977,0.00161,87693.0,87669.0,0.01351176]
[1765987669578,0.001,87691.0,87669.0,0.01351176]
[1765987669808,0.001,87691.0,87671.0,0.01140628]
[1765987670009,0.00161,87693.0,87674.0,0.01140589]
[1765987670211,0.00161,87693.0,87683.0,0.01351176]
[1765987670342,0.49578,87722.0,87684.0,0.01140458]
[1765987670544,0.7032,87717.0,87684.0,0.51427]
[1765987670744,0.2907,87711.0,87684.0,0.01872]
[1765987670999,0.2907,87708.0,87684.0,0.01872]
[1765987671133,0.9939,87706.0,87684.0,0.01872]
[1765987671330,0.1140601,87700.0,87684.0,0.01872]
[1765987671543,0.01872,87717.0,87690.0,1.01587421]
[1765987671749,0.7032,87735.0,87691.0,0.05001839]
[1765987671947,0.7032,87735.0,87707.0,0.01140159]
[1765987672178,1.01587421,87750.0,87710.0,0.2907]
[1765987672179,0.7032,87743.0,87710.0,0.2907]
[1765987672391,0.7032,87737.0,87710.0,0.2907]
[1765987672642,0.1140601,87725.0,87710.0,0.2907]
[1765987672834,0.7032,87737.0,87710.0,0.2907]
[1765987673052,1.18565,87727.0,87710.0,0.2907]
[1765987673260,0.1140602,87729.0,87713.0,0.01351176]
[1765987673424,1.18565,87739.0,87713.0,0.01351176]
[1765987673734,0.68682,87737.0,87713.0,0.01351176]
[1765987673941,0.68682,87735.0,87713.0,0.01351176]
[1765987674147,0.00161,87735.0,87713.0,0.01351176]
[1765987674346,0.00161,87735.0,87683.0,0.35117541]
[1765987674347,0.1140602,87719.0,87683.0,0.35117541]
[1765987674554,0.1140602,87719.0,87691.0,0.01872]
[1765987674555,0.1140602,87710.0,87691.0,0.01872]
[1765987674760,0.1156702,87710.0,87691.0,0.01872]
[1765987675305,0.1140602,87700.0,87692.0,0.01872]
[1765987675853,0.1140602,87684.0,87630.0,0.00099999]
[1765987676103,0.1140602,87666.0,87647.0,0.0114094]
[1765987676330,0.01872,87691.0,87640.0,1.24407825]
[1765987676331,0.05693017,87693.0,87656.0,1.01587421]
[1765987676514,0.00161,87682.0,87657.0,0.2907]
[1765987676856,0.00161,87682.0,87673.0,0.01351176]
[1765987677056,1.18565,87712.0,87673.0,0.01351176]
[1765987677266,0.11406009,87705.0,87689.0,0.01351176]
[1765987677470,0.11406009,87708.0,87689.0,0.01351176]
[1765987678336,0.00161,87712.0,87689.0,0.01351176]
[1765987678541,0.02801447,87731.0,87689.0,0.01351176]
[1765987678542,1.18097,87735.0,87703.0,0.01351176]
[1765987678672,0.11406009,87730.0,87703.0,0.01351176]
[1765987678872,0.11406009,87721.0,87703.0,0.01351176]
[1765987679316,0.00099999,87760.0,87703.0,0.01351176]
[1765987679692,1.18097,87766.0,87735.0,0.05001839]
[1765987679865,1.18097,87766.0,87737.0,0.06141608]
[1765987680071,1.18097,87766.0,87732.0,0.01139834]
[1765987680072,0.02849543,87794.0,87748.0,0.05001839]
[1765987680281,0.01006469,87793.0,87751.0,0.06141427]
[1765987680480,0.1140601,87776.0,87753.0,0.22791086]